Cogmind - Beta 13 @@@ ROGUE MODE // 2024.07.07 @ 19:44:55 Player: visilii Result: Destroyed by H-55 Commando with Assault Rifle Performance ------------- Evolutions (1) 500 Regions Visited (5) 1000 Robots Destroyed (46) 230 Value Destroyed (1414) 1414 Prototype IDs (25) 500 Alien Tech Used (0) 0 Bonus (300) 300 TOTAL SCORE: 3944 Bonus ------- Aligned with FarCom 300 Cogmind --------- Core Integrity 0/400 Matter 254/300 Energy 80/100 System Corruption 13% Temperature Cool (0) Movement Walking (190) Ox1 Location -9/Exiles Parts ------- > --- POWER (1) -------- (None) > --- PROPULSION (3) --- Carbon-fiber Leg > --- UTILITY (3) ------ Large Storage Unit > --- WEAPON (2) ------- Longsword +1 > --- INVENTORY (15) --- Light Ion Engine Light Nuclear Core Carbon-fiber Leg Heat Sink Huge Storage Unit Large Battery (200) Compact Matter Pod (150) Skeleton Box Tractor Beam Splice Drone Bay (6/6) Assault Rifle Datajack Mining Laser Maul Peak State ------------ > --- POWER ------------ Improved Ion Engine > --- PROPULSION ------- Aluminum Leg Aluminum Leg Aluminum Leg > --- UTILITY ---------- Large Storage Unit Experimental Sensor Array Splice Drone Bay > --- WEAPON ----------- Beam Rifle Heavy Hammer > --- INVENTORY -------- Ion Engine Aluminum Leg Heat Sink Huge Storage Unit Large Battery Compact Matter Pod Signal Interpreter Hardened Light Armor Plating Hardened Light Armor Plating Tractor Beam Assault Rifle Light Cannon Datajack Mining Laser Maul [Rating: 28] Favorites ----------- Power Ion Engine Engine Ion Engine Power Core Light Nuclear Core Propulsion Aluminum Leg Leg Aluminum Leg Wheel Wheel Utility Large Storage Unit Device Sensor Array Storage Large Storage Unit Processor Signal Interpreter Protection Hardened Light Armor Plating Weapon Light Cannon Energy Gun Beam Rifle Energy Cannon Particle Cannon Ballistic Gun Assault Rifle Ballistic Cannon Light Cannon Launcher Grenade Launcher Special Weapon Mining Laser Impact Weapon Heavy Hammer Slashing Weapon Longsword +1 Build | -11 -10 -10 -9 -9 -9 ------- Run | Yrd Mat Min Mat Min Exi Slots Evolved 2 | . . . 2 . . Power . | . . . . . . Propulsion 1 | . . . 1 . . Utility 1 | . . . 1 . . Weapon . | . . . . . . Parts Attached 68 | 6 15 13 15 13 6 Power 9 | 1 2 2 3 1 . Engine 8 | 1 1 2 3 1 . Core 1 | . 1 . . . . Reactor . | . . . . . . Propulsion 18 | 2 4 4 4 3 1 Treads . | . . . . . . Leg 15 | 2 2 3 4 3 1 Wheel 3 | . 2 1 . . . Hover . | . . . . . . Flight . | . . . . . . Utility 22 | 1 5 3 4 7 2 Device 10 | . 2 1 2 4 1 Storage 6 | 1 3 2 . . . Processor 1 | . . . . 1 . Hackware . | . . . . . . Protection 5 | . . . 2 2 1 Artifact . | . . . . . . Weapon 19 | 2 4 4 4 2 3 Energy Gun 2 | . 1 . . 1 . Energy Cannon 1 | . . . 1 . . Ballistic Gun 2 | 2 . . . . . Ballistic Cannon 5 | . 2 2 . . 1 Launcher 2 | . 1 1 . . . Special Weapon 1 | . . 1 . . . Impact Weapon 4 | . . . 3 1 . Slashing Weapon 2 | . . . . . 2 Piercing Weapon . | . . . . . . Special Melee Weapon . | . . . . . . Unidentified Prototypes 4 | . . . . 2 2 Parts Lost 28 | . 4 9 4 4 7 Power 6 | . 1 2 1 1 1 Propulsion 10 | . 2 3 1 1 3 Utility 7 | . . 2 1 2 2 Weapon 5 | . 1 2 1 . 1 Highest Loss Streak 6 | . 3 6 1 3 6 To Critical Strikes . | . . . . . . Average Slot Usage (%) 92 | . 96 89 85 96 95 Engine 11 | . 11 13 10 9 11 Leg 27 | . 23 21 26 32 32 Device 6 | . 12 7 5 8 . Storage 13 | . 14 18 13 11 11 Protection 7 | . . . 8 9 20 Energy Gun 3 | . 4 . . 10 5 Energy Cannon 2 | . . . 10 . . Ballistic Gun 2 | . 10 . . . . Ballistic Cannon 7 | . 12 20 2 . 2 Impact Weapon 5 | . . . 8 11 8 Naked Turns . | . . . . . . Heaviest Build 46 | 13 30 34 41 46 41 Greatest Support 30 | 20 20 20 30 30 30 Greatest Overweight (x) 7 | 1 2 7 3 1 1 Average Overweight (x) . | . . 1 1 . 1 Largest Inventory Capacity 25 | 8 25 15 15 15 15 Average Capacity 14 | 7 12 14 15 15 15 Most Carried 15 | 5 10 10 14 15 15 Average Carried 9 | 3 7 7 10 13 11 Final Capacity 15 | 8 15 15 15 15 15 Final Carried 14 | 4 10 5 13 11 14 Class Distribution -------------------- 54% | Mutant 45% | Scavenger-Mutant Dominant Class ---------------- Mutant | -10/Materials Mutant | -10/Mines Scavenger-Mutant | -9/Materials Scavenger-Mutant | -9/Mines Scavenger-Mutant | -9/Exiles Resources | -11 -10 -10 -9 -9 -9 ----------- Run | Yrd Mat Min Mat Min Exi Matter Collected 1200 | 226 225 242 271 148 88 Remotely 130 | . . 100 . 30 . Salvage Created 1384 | . 297 116 592 290 89 Parts 58 | . 16 5 25 6 6 Haulers Intercepted . | . . . . . . Recyclers Shooed 1 | . . . 1 . . Parts Field Recycled . | . . . . . . Retrieved Matter . | . . . . . . Parts Self-Destructed . | . . . . . . Prevented . | . . . . . . Kills | -11 -10 -10 -9 -9 -9 ------- Run | Yrd Mat Min Mat Min Exi Combat Hostiles Destroyed 41 | . 7 6 16 10 2 Melee 11 | . . . 4 5 2 Guns 6 | . 6 . . . . Cannons 11 | . . 4 7 . . AOE 3 | . 1 2 . . . Classes Destroyed 11 | . 4 1 3 1 2 Worker 2 | . 1 1 . . . Recycler 1 | . . . 1 . . Watcher 2 | . 2 . . . . Swarmer 10 | . 2 . 4 4 . Grunt 21 | . 5 4 8 4 . Brawler 2 | . . . . 2 . Duelist 1 | . . . 1 . . Sentry 3 | . . . 3 . . Demolisher 2 | . . 2 . . . Hunter 1 | . . . . . 1 Programmer 1 | . . . . . 1 Best Kill Streak 7 | . 2 3 7 2 1 Combat Bots Only 7 | . 2 2 7 2 1 Max Kills in Single Turn 1 | . 1 1 1 1 1 Gunslinging . | . . . . . . Exploded 1 | . 1 1 . . . Melee 1 | . . . 1 1 1 Uniques/NPCs Destroyed . | . . . . . . Combat | -11 -10 -10 -9 -9 -9 -------- Run | Yrd Mat Min Mat Min Exi Hostile Shots Fired 373 | . 82 27 114 85 65 Missed 95 | . 16 6 29 19 25 Damage Taken 3368 | . 730 454 836 744 604 Core 607 | . 119 78 145 146 119 Absorbed by Shields 104 | . . . 104 . . Core Remaining (%) 60 | 100 . 21 . . . Volleys Fired 89 | . 39 16 28 6 . Largest 2 | . 2 2 2 1 . Hottest 103 | . 70 70 103 56 . Shots Fired 144 | . 73 19 45 6 1 Gun 78 | . 71 . . 6 1 Cannon 60 | . . 15 45 . . Launcher 6 | . 2 4 . . . Special . | . . . . . . Kinetic 84 | . 51 15 18 . . Thermal 54 | . 20 . 27 6 1 Explosive 6 | . 2 4 . . . Electromagnetic . | . . . . . . Robot Hit Streak 6 | . 6 5 5 1 . Robot Miss Streak 5 | . 5 1 5 2 . Penetration Max . | . . . . . . Secondary Targets . | . . . . . . Shots Hit Robots 133 | . 36 14 56 22 5 Core Hits 48 | . 18 12 12 4 2 Critical Kills 2 | . . . 1 1 . Critical Parts Destroyed 9 | . . . 6 3 . Critical Strikes 15 | . 2 1 8 4 . Burn 2 | . 2 . . . . Blast 1 | . . 1 . . . Smash 12 | . . . 8 4 . Melee Attacks 78 | . . . 42 31 5 Impact 73 | . . . 42 31 . Slashing 5 | . . . . . 5 Piercing . | . . . . . . Sneak Attacks 2 | . . . 2 . . Combat Hostiles 1 | . . . 1 . . Follow-up Attacks . | . . . . . . Damage Inflicted 3632 | . 571 352 1651 806 252 Guns 496 | . 452 . . 44 . Cannons 669 | . . 216 453 . . Explosions 255 | . 119 136 . . . Melee 2212 | . . . 1198 762 252 Ramming . | . . . . . . Kinetic 680 | . 299 216 165 . . Thermal 485 | . 153 . 288 44 . Explosive 255 | . 119 136 . . . Electromagnetic . | . . . . . . Impact 1960 | . . . 1198 762 . Slashing 252 | . . . . . 252 Piercing . | . . . . . . Highest Corruption 13 | . . . 1 11 13 Average Corruption 4 | . . . 1 3 11 Corruption Purged . | . . . . . . Corruption Blocked . | . . . . . . Effects 71 | . . . 14 11 46 Message Errors 15 | . . . 4 2 9 Matter Fused 22 | . . . 4 5 13 Heat Flow Errors 10 | . . . 2 2 6 Energy Discharges 11 | . . . 1 . 10 Parts Rejected 1 | . . . . 1 . Parts Fused 2 | . . . 1 1 . Data Loss (minor) 4 | . . . 1 . 3 Data Loss (major) 3 | . . . . . 3 Misfires 1 | . . . . . 1 Misdirections 1 | . . . . . 1 Weapon Failures 1 | . . . 1 . . Overload Shots . | . . . . . . Overflow Damage 552 | . . . 311 241 . Projectiles . | . . . . . . Explosions . | . . . . . . Melee 552 | . . . 311 241 . Knockbacks 11 | . . 1 6 4 . Impact 8 | . . . 4 4 . Kinetic 3 | . . 1 2 . . Secondary . | . . . . . . Self-Inflicted Damage 41 | . . 41 . . . Shots 2 | . . 2 . . . Rammed . | . . . . . . Targets Rammed . | . . . . . . Kicked . | . . . . . . Crushed . | . . . . . . Highest Temperature 240 | . 189 27 231 103 240 Average Temperature 76 | . 78 9 81 44 89 Received Heat Transfer 979 | . 312 156 277 204 30 Effects 1 | . . . 1 . . Energy Bleed 1 | . . . 1 . . Siege Activations . | . . . . . . Robots Corrupted . | . . . . . . Combat Hostiles . | . . . . . . Parts Fried 5 | . . . 3 2 . Impact Corruptions 27 | . . . 15 12 . Robots Melted . | . . . . . . Combat Hostiles . | . . . . . . Parts Melted 2 | . 1 . 1 . . Heat Transferred 1221 | . 592 . 518 111 . Parts Sabotaged . | . . . . . . Parts Stolen . | . . . . . . Parts Stripped . | . . . . . . Power Chain Reactions . | . . . . . . Alert | -11 -10 -10 -9 -9 -9 ------- Run | Yrd Mat Min Mat Min Exi Peak Influence 270 | . 134 92 270 170 . Initial 93 | . . . . 93 . Average 51 | . 32 21 74 78 . Maximum Alert Level 1 | . . . 1 . . Low Security (%) 96 | 100 100 100 89 100 . Level 1 3 | . . . 10 . . Level 2 . | . . . . . . Level 3 . | . . . . . . Level 4 . | . . . . . . Level 5 . | . . . . . . High Security . | . . . . . . Max Security . | . . . . . . Squads Dispatched 8 | . 2 . 6 . . Investigation 5 | . 1 . 4 . . Extermination . | . . . . . . Reinforcement 3 | . 1 . 2 . . Assault . | . . . . . . Garrison . | . . . . . . Intercept . | . . . . . . Searches Triggered . | . . . . . . Construction Impeded . | . . . . . . Haulers Reinforced . | . . . . . . Active Scanning Responses . | . . . . . . Cargo Convoy Interrupts . | . . . . . . Stealth | -11 -10 -10 -9 -9 -9 --------- Run | Yrd Mat Min Mat Min Exi Distress Signals 2 | . . . 2 . . Communications Jammed . | . . . . . . Distress Signals . | . . . . . . Times Spotted 72 | . 16 6 29 12 9 Peak Tracking Total 10 | . 4 2 4 4 10 Tactical Retreats 11 | . 1 . 8 2 . Traps | -11 -10 -10 -9 -9 -9 ------- Run | Yrd Mat Min Mat Min Exi Traps Triggered 2 | . 1 . 1 . . Indirectly . | . . . . . . Trap Hack Attempts . | . . . . . . Triggered . | . . . . . . Disarmed . | . . . . . . Reprogrammed . | . . . . . . Reused . | . . . . . . Traps Extracted . | . . . . . . Installed . | . . . . . . Triggered 1 | . . . 1 . . Machines | -11 -10 -10 -9 -9 -9 ---------- Run | Yrd Mat Min Mat Min Exi Machines Disabled 2 | . . . 1 1 . Max in Single Turn 1 | . . . 1 1 . Machines Repaired . | . . . . . . Machines Dismantled . | . . . . . . Machines Sabotaged . | . . . . . . Overloaded Fab Kills . | . . . . . . Hacking | -11 -10 -10 -9 -9 -9 --------- Run | Yrd Mat Min Mat Min Exi Machines Accessed 17 | . 7 . 4 2 4 Terminals 10 | . 6 . 3 1 . Fabricators . | . . . . . . Repair Stations . | . . . . . . Recycling Units 2 | . 1 . 1 . . Scanalyzers . | . . . . . . Garrison Access . | . . . . . . Total Hacks 62 | . 20 . 12 3 27 Successful 43 | . 7 . 6 3 27 Failed 19 | . 13 . 6 . . Catastrophic 1 | . 1 . . . . Database Lockouts . | . . . . . . Manual 1 | . . . . . 1 Terminals 29 | . 17 . 10 2 . Fabricators . | . . . . . . Repair Stations . | . . . . . . Recycling Units 5 | . 3 . 2 . . Scanalyzers . | . . . . . . Garrison Access . | . . . . . . Terminal Hacks 40 | . 6 . 4 3 27 Record 28 | . . . 1 1 26 Open Door 1 | . . . . 1 . Locate Traps 2 | . 2 . . . . Dispatch Records 1 | . 1 . . . . Maintenance Status 1 | . . . 1 . . Patrol Status 2 | . 1 . . 1 . Zone Layout 4 | . 2 . 2 . . Derelict Proto ID Bank 1 | . . . . . 1 Fabricator Hacks . | . . . . . . Repair Station Hacks . | . . . . . . Recycling Unit Hacks 3 | . 1 . 2 . . Report Inventory 2 | . 1 . 1 . . Retrieve Components 1 | . . . 1 . . Scanalyzer . | . . . . . . Garrison Access Hacks . | . . . . . . Unauthorized Hacks . | . . . . . . Terminals . | . . . . . . Fabricators . | . . . . . . Repair Stations . | . . . . . . Recycling Units . | . . . . . . Scanalyzers . | . . . . . . Garrison Access . | . . . . . . Data Cores Recovered . | . . . . . . Used . | . . . . . . Hacking Detections 11 | . 7 . 3 1 . Full Trace Events 2 | . . . 2 . . Feedback Events 1 | . . . 1 . . Corruption 1 | . . . 1 . . Feedback Blocked . | . . . . . . Robot Schematics Acquired . | . . . . . . Robots Built . | . . . . . . Authchips . | . . . . . . Time . | . . . . . . Total Robot Build Rating . | . . . . . . Part Schematics Acquired . | . . . . . . Parts Built . | . . . . . . Authchips . | . . . . . . Time . | . . . . . . Total Part Build Rating . | . . . . . . Parts Repaired . | . . . . . . Time . | . . . . . . Parts Recycled . | . . . . . . Recycled Matter . | . . . . . . Retrieved Matter . | . . . . . . Retrieved Components 9 | . . . 9 . . Parts Scanalyzed . | . . . . . . Part Schematics Acquired . | . . . . . . Parts Damaged . | . . . . . . Bothacking | -11 -10 -10 -9 -9 -9 ------------ Run | Yrd Mat Min Mat Min Exi Used RIF Installer . | . . . . . . Robots Hacked . | . . . . . . Non-combat . | . . . . . . Combat . | . . . . . . Robot Hacks Applied . | . . . . . . Relay Couplers Released . | . . . . . . Fabnet Peak Effective % . | . . . . . . Robots Rewired . | . . . . . . Allies Hacked . | . . . . . . Hacks Repelled . | . . . . . . Allies | -11 -10 -10 -9 -9 -9 -------- Run | Yrd Mat Min Mat Min Exi Total Allies . | . . . . . . Largest Group . | . . . . . . Highest-Rated Group . | . . . . . . Highest-Rated Ally . | . . . . . . Total Orders . | . . . . . . Ally Attacks . | . . . . . . Total Damage . | . . . . . . Kills . | . . . . . . Allies Corrupted . | . . . . . . Allies Melted . | . . . . . . Intel | -11 -10 -10 -9 -9 -9 ------- Run | Yrd Mat Min Mat Min Exi Robot Analysis Total . | . . . . . . Derelict Logs Recovered 1 | . . . . 1 . Drone Launches . | . . . . . . Drone Recoveries . | . . . . . . Exploration | -11 -10 -10 -9 -9 -9 ------------- Run | Yrd Mat Min Mat Min Exi Turns Passed 6460 | 69 1755 869 1701 893 1173 Spaces Moved 2787 | 47 754 399 604 382 601 Core 21 | 14 . 7 . . . Treads . | . . . . . . Legs 2597 | 33 613 364 604 382 601 Wheels 169 | . 141 28 . . . Hover . | . . . . . . Flight . | . . . . . . Fastest Speed 50 | 50 95 110 120 120 190 Average Speed 181 | 114 149 203 201 185 190 Slowest Speed 400 | 190 260 400 330 190 190 Overloaded Moves . | . . . . . . Propulsion Burnouts . | . . . . . . Robots Hopped . | . . . . . . Cave-ins Triggered . | . . . . . . Exploration Rate (%) 57 | 4 84 69 28 69 92 Regions Visited 5 Branch Regions 3 Pre-discovered Areas 1 | . . 1 . . . Known Exits Taken . | . . . . . . Unknown Exits Taken 5 | 1 1 1 1 1 . Scrap Searched 2 | . . 1 . 1 . Spaces Dug . | . . . . . . Terrain Destroyed 19 | . 4 15 . . . Melee . | . . . . . . Projectile . | . . . . . . AOE 19 | . 4 15 . . . Terrain Rammed . | . . . . . . Walls Destroyed . | . . . . . . Machines Disabled . | . . . . . . Actions | -11 -10 -10 -9 -9 -9 --------- Run | Yrd Mat Min Mat Min Exi Total 3905 | 62 1308 436 966 502 631 Wait 798 | . 484 4 252 57 1 Move 2782 | 46 753 398 603 381 601 Hop . | . . . . . . Pick Up 66 | 10 14 4 19 9 10 Fast Attach . | . . . . . . Attach 40 | 6 5 10 6 8 5 Detach 6 | . . 1 1 1 3 Swap 28 | . 10 3 9 5 1 Drop 18 | . 3 . 6 4 5 Fire 89 | . 39 16 28 6 . Melee 78 | . . . 42 31 5 Ram . | . . . . . . Kick . | . . . . . . Crush . | . . . . . . Escape Stasis . | . . . . . . Rewire . | . . . . . . Trap . | . . . . . . Miscellaneous . | . . . . . . Route ------- -11/Scrapyard -10/Materials (discovered 3 exits: *Mat x2 / [*Min]) -10/Mines (discovered 2 exits: *Mat x2) -9/Materials -9/Mines (discovered 3 exits: *Mat x2 / *Exi) -9/Exiles (discovered 2 exits: [*Min x2]) History --------- Turn | Location | Event 9 | -11/Scrapyard | Discovered new exit (range 15) 70 | -11/Scrapyard | Entered Materials 317 | -10/Materials | Build established: Mutant 836 | -10/Materials | Discovered new exit (range 7) 1008 | -10/Materials | Lost 3 parts (1p1n1w) 1232 | -10/Materials | Discovered new exit (range 11) 1547 | -10/Materials | Discovered new exit (range 6) 1825 | -10/Materials | Entered Mines 1835 | -10/Mines | Discovered new exit (range 10) 1882 | -10/Mines | Met a Derelict bent on vengeance 1925 | -10/Mines | Assembled infested the area 2037 | -10/Mines | Learned location of Storage (-9) 2239 | -10/Mines | Core integrity fell below 50% 2271 | -10/Mines | Lost 3 parts (1p1n1u) 2321 | -10/Mines | Lost 6 parts (1p2n1u2w) 2530 | -10/Mines | Discovered new exit (range 9) 2694 | -10/Mines | Entered Materials 2694 | -9/Materials | Evolved 2 slots: Propulsion x1, Utility x1 3116 | -9/Materials | Destroyed 7 combat bots 3435 | -9/Materials | Build established: Scavenger-Mutant 4018 | -9/Materials | Build established: Mutant 4165 | -9/Materials | Discovered new exit (range 12) 4370 | -9/Materials | Build established: Scavenger-Mutant 4395 | -9/Materials | Entered Mines 4712 | -9/Mines | Found the Drone Emporium 4726 | -9/Mines | Found Prototype Device 4727 | -9/Mines | Identified Splice Drone Bay 4810 | -9/Mines | Learned Materials interactive machine intel 4829 | -9/Mines | Found a damaged Exp. Sensor Array with a note attached 4835 | -9/Mines | Found Prototype Device 4836 | -9/Mines | Identified Exp. Sensor Array 4988 | -9/Mines | Discovered new exit (range 9) 5004 | -9/Mines | Identified exit to Materials 5044 | -9/Mines | Core integrity fell below 50% 5050 | -9/Mines | Discovered exit to Materials (range 16) 5109 | -9/Mines | System corruption reached 10% 5139 | -9/Mines | Lost 3 parts (1n2u) 5279 | -9/Mines | Deemed a non-threat by the Exiles lab entrance 5280 | -9/Mines | Discovered new exit (range 5) 5288 | -9/Mines | Entered Exiles 5313 | -9/Exiles | Discovered new exit (range 15) 5332 | -9/Exiles | Met 8R-AWN 5366 | -9/Exiles | Met EX-HEX 5439 | -9/Exiles | Met EX-DEC 5547 | -9/Exiles | Discovered new exit (range 14) 5692 | -9/Exiles | Visited The Gauntlet 5966 | -9/Exiles | Met EX-BIN 5999 | -9/Exiles | Aligned with FarCom system 6001 | -9/Exiles | Given EX-Vault access code 6077 | -9/Exiles | Opened EX-Vault 6092 | -9/Exiles | Found Prototype Device 6093 | -9/Exiles | Identified Skeleton Box 6101 | -9/Exiles | Found Prototype Slashing Weapon 6102 | -9/Exiles | Identified Longsword +1 6110 | -9/Exiles | Found Prototype Flight Unit 6164 | -9/Exiles | Exiles lab attacked by MAIN.C 6457 | -9/Exiles | Core integrity fell below 20% 6461 | -9/Exiles | Destroyed by H-55 Commando with Assault Rifle Last Messages --------------- Hrd. Light Armor Plating destroyed. Slug penetrates FarCom Aligner. FarCom Aligner disabled. H-55 Commando destroyed. Acquired 47 matter. Acquired Carbon-fiber Leg. Acquired Lgt. Nuclear Core. System corrupted: Energy discharge (-90). Machine disabled. Aluminum Leg destroyed. G-34 Mercenary destroyed. Lgt. Cannon destroyed. Acquired 41 matter. Aluminum Leg destroyed. G-34 Mercenary destroyed. Penetrated by Slug. P-60 Hacker destroyed. Hrd. Light Armor Plating destroyed. Penetrated by Slug. Ion Engine destroyed. Map ----- +----------------------------------------------------+ | ????????????????#""""""## #########??????????? | | ????????????????#"""" ## #??????????????????? | | ????????????????#""X" #??????????????????? | | ????????????????#" #??????????????????? | | ????????????????#" ## #??????????????????? | | ????????????????#""""""## #?#########????????? | | ????????????????##"###### #?#"""""""#????????? | | ???????????????? "?????# #?#"""""""#????????? | | ???????????????"""??????# #?#"""""""#????????? | | ???????????????"""?????## ###"" """#????????? | | ???????????????????????#" """"#????????? | | ???????????????????????#" """#????????? | | ???????????????????????#" """#????????? | | ???????????????????????#" """#????????? | | ????????########???????#" """#????????? | | ????????# """#???????#" """##???????? | | ????????#"" """#???????## """""???????? | | ????????#"" #????????# """#####????? | | ????????#"" #????????#" "X" """"" #???? | | ????????#"" "#????????#" """ # "??????? | | ????????# ""#????????#" """""""""#????????? | | ????????#"" ""#???????## [###########????????? | | ????????### ###??????## #??????????????????? | | #####???### ###?###### #??????????????????? | | """#####X# #"###"""""" = ##?????????????????? | | """""" " " @[ ##???###########??? | | "" """ !*% #####"""""""""##?? | | " " %== " """ """"##? | | "" " #? | | " """#? | | # %% p " "#? | | ## =[%! % % " "## | | ?##" g =|%=%! ""# | | ??#""" !g[=!*"""""" "" | | ?##" %%=######""" ph | | ?#"" ""##????#####""" | | ?#""" """##?????????##""" | | ?""" """##???????????#"""" | | #""" ""#???????????##"" | | #"" ########??####"""" | | #""" ## ####""" | | #"" """" | | ##"" | | ?#"""" | | ?## " | | ??#" " "" """ | | ??#"""" ""## ##""" " " ""#" | | ??#"" ""#### ######""" """##""""""" | | ??#" """"##??# #????###""""########## | | ??#""" """#???# #???????#####????????? | +----------------------------------------------------+ Best States ------------- Heat Dissipation 38 Energy Generation 14 Energy Capacity 450 Matter Stores 300 Matter Capacity 300 Sight Range 16 Robot Scan Range 20 Terrain Scan Density 10 Armor Coverage 300 Evasion (%) 55 Item Schematics ----------------- None Robot Schematics ------------------ None Fabricated ------------ Nothing Alien Tech Used ----------------- None Achievements -------------- System Compromised Use The Force Challenges ------------ None Game ------ Seed PhaseDimensionalRefractor Manual? 0 Play Time 01:10:36 Cumulative 7.8 hours Start 2024.07.07 @ 18:28:51 End 2024.07.07 @ 19:44:55 Sessions 1 Manual Loads 0 Difficulty Rogue Special Mode None Game No. 8 Rogue 8 Adventurer 0 Explorer 0 Win Type - Total 0 Types 0/0/0/0/0/0/0/0/0 Lore% 14 Gallery% 12 Achievement% 10 Wizard Run 0 Options --------- Layout 1 ASCII 0 Keyboard 0 Movement Numpad Keybinds 0 Fullscreen 1 Font 24/Smallcaps Map View 50x35 Zoom Use 0% Tactical HUD 0 Map Filters NONE Filters NONE Steam 0 RUN: 475be9ec-d2a1-4877-8609-dd53be79f1b7